bitfinex/quotes_ETHUSD_20250625
["timestamp","ask_amount","ask_price","bid_price","bid_amount"]
[1750836932850,3.59628212,2449.0,2448.8,4.08361383]
[1750836934716,3.59628212,2449.0,2448.7,4.08375054]
[1750836935347,3.59628212,2449.0,2448.5,4.84613111]
[1750836935348,4.08356173,2448.9,2448.5,4.84613111]
[1750836935519,4.08356173,2448.9,2448.5,11.55713111]
[1750836935724,4.08356173,2448.9,2448.5,7.473]
[1750836936039,4.08365443,2448.8,2448.5,7.473]
[1750836936250,4.08365443,2448.8,2448.5,6.711]
[1750836936835,4.08380151,2448.7,2448.4,1.755]
[1750836937037,4.62959289,2448.9,2448.1,0.8134]
[1750836937038,10.546,2448.9,2448.1,0.8134]
[1750836937244,4.08408055,2448.6,2448.2,4.08461156]
[1750836937923,4.08384866,2448.7,2448.1,1.07024]
[1750836938118,6.71,2448.8,2448.1,1.07024]
[1750836938320,4.63022998,2448.5,2448.1,0.8134]
[1750836938657,4.63022998,2448.5,2448.0,4.08489922]
[1750836939023,4.63022998,2448.5,2448.1,4.08477536]
[1750836940142,0.546,2448.5,2448.1,4.08477536]
[1750836940658,4.63018665,2448.5,2448.1,4.08477536]
[1750836941749,4.63018665,2448.5,2448.0,4.08488801]
[1750836941948,4.63018665,2448.5,2448.0,6.80900456]
[1750836942559,4.63018665,2448.5,2448.1,4.08477185]
[1750836942860,0.546,2448.5,2448.2,4.0846241]
[1750836943038,4.08396962,2448.6,2448.2,4.0846241]
[1750836944144,4.08390153,2448.7,2448.2,4.0846241]
[1750836944723,4.08390153,2448.7,2448.2,4.81766534]
[1750836946452,4.08390153,2448.7,2448.3,4.0844455]
[1750836946650,4.08364463,2448.8,2448.4,4.08425751]
[1750836947442,10.0,2448.9,2448.6,4.84604059]
[1750836949154,10.0,2448.9,2448.7,4.0837862]
[1750836950538,10.0,2448.9,2448.7,0.89299701]
[1750836950738,14.08351575,2448.9,2448.6,0.7621]
[1750836951167,4.08365422,2448.8,2448.4,4.88403091]
[1750836951469,4.62965422,2448.8,2448.5,8.46]
[1750836951666,0.546,2448.8,2448.5,8.46]
[1750836951840,4.08387758,2448.7,2448.5,8.46]
[1750836952166,4.08387758,2448.7,2448.1,4.08468641]
[1750836952167,4.08414395,2448.5,2448.1,12.54367215]
[1750836952369,0.546,2448.8,2448.1,8.459]
[1750836952572,4.08425705,2448.5,2448.1,8.459]
[1750836952753,2.36857844,2448.8,2448.1,4.08480045]
[1750836952939,4.08395317,2448.7,2448.2,4.08452936]
[1750836955789,4.08398185,2448.6,2448.2,4.08452936]
[1750836956268,4.08390358,2448.7,2448.2,4.08452936]
[1750836956453,4.08390358,2448.7,2448.2,6.095094]
[1750836956661,4.08401284,2448.6,2448.2,2.01056464]
[1750836956976,4.08414094,2448.5,2448.1,4.08475099]
[1750836957271,4.08414094,2448.5,2448.0,16.02119145]
[1750836957471,4.08414094,2448.5,2448.1,4.08479981]
[1750836958850,4.08406586,2448.6,2448.1,4.08479981]
[1750836959039,8.16819778,2448.6,2448.1,4.08479981]
[1750836959376,4.08417431,2448.5,2448.1,4.08479981]
[1750836959536,4.08417431,2448.5,2448.1,6.09541679]
[1750836960981,10.0,2448.7,2448.0,11.93631655]
[1750836961142,4.08469916,2448.2,2448.0,2.5052]
[1750836961476,6.706,2448.7,2448.0,1.752]
[1750836961477,4.63041315,2448.4,2448.0,1.752]
[1750836961774,4.08425307,2448.5,2448.0,5.83687451]
[1750836962081,4.08431776,2448.4,2448.0,5.83687451]
[1750836963790,4.08447238,2448.3,2448.0,1.752]
[1750836964203,4.08472648,2448.2,2447.8,10.614]
[1750836964370,4.08480176,2448.1,2447.8,0.808]
[1750836964570,4.63072545,2448.2,2447.8,4.89326561]
[1750836965058,4.084873,2448.1,2447.8,0.808]
[1750836965254,4.08504446,2448.0,2447.6,0.8271]
[1750836965461,4.08537431,2447.8,2447.5,1.752]
[1750836965693,4.08537431,2447.8,2447.4,0.8271]
[1750836965861,0.546,2448.2,2447.4,14.26988513]
[1750836966063,4.08517366,2447.9,2447.5,4.08573771]
[1750836966263,4.08541704,2447.8,2447.4,10.18402959]
[1750836966472,4.08541704,2447.8,2447.4,14.26998725]
[1750836966872,4.08541704,2447.8,2447.4,10.18402959]
[1750836967162,4.08503165,2448.0,2447.5,4.68579214]
[1750836967361,4.08503165,2448.0,2447.5,0.6]
[1750836967561,4.08516616,2447.9,2447.5,4.68570592]
[1750836968694,4.0853247,2447.8,2447.5,1.02692927]
[1750836968898,4.0853247,2447.8,2447.5,0.6]
[1750836970309,4.08502043,2448.0,2447.6,4.08561615]
[1750836971169,4.08502043,2448.0,2447.5,4.6857052]
[1750836971557,4.08514991,2447.9,2447.5,4.0857052]
[1750836972001,4.08504923,2448.0,2447.5,8.17135387]
[1750836972211,4.08504923,2448.0,2447.5,4.08564867]
[1750836972911,4.08530443,2447.8,2447.4,14.26994624]
[1750836973601,4.08530443,2447.8,2447.4,10.18402959]
[1750836974503,4.08522704,2447.9,2447.4,14.26999707]
[1750836974721,4.08534531,2447.8,2447.4,14.26999707]
[1750836975098,4.08547511,2447.7,2447.4,10.18402959]
[1750836975507,4.08572135,2447.6,2447.1,2.5636]
[1750836975718,0.546,2447.7,2446.9,16.45438921]
[1750836975719,4.08623494,2447.3,2446.9,16.45438921]
[1750836976028,4.08623494,2447.3,2447.0,6.705]
[1750836976187,4.08623494,2447.3,2446.9,12.3676]
[1750836976513,4.08631972,2447.2,2447.0,6.705]
[1750836976904,4.08631972,2447.2,2446.9,12.3676]
[1750836976905,4.08609133,2447.4,2446.9,16.45436874]
[1750836977236,4.08619997,2447.3,2446.9,23.15936874]
[1750836977714,4.08609133,2447.4,2446.9,19.0726]
[1750836977715,4.08603627,2447.4,2446.9,19.0726]
[1750836977919,4.08622847,2447.3,2446.9,19.0726]
[1750836978083,4.08603627,2447.4,2446.9,19.0726]
[1750836978084,14.08606252,2447.4,2447.0,4.08663327]
[1750836978620,14.08572979,2447.6,2447.1,4.08633382]
[1750836979699,10.0,2447.4,2447.1,4.08633382]
[1750836979894,10.0,2447.4,2447.0,4.08656038]
[1750836980099,14.08599308,2447.4,2447.0,4.08656038]
[1750836980300,10.0,2447.4,2447.0,4.08656038]
[1750836980495,10.0,2447.4,2447.1,4.08645677]
[1750836981390,14.08596896,2447.4,2447.0,4.08653928]
[1750836982219,14.08575447,2447.6,2447.1,4.08640089]
[1750836982401,14.08575447,2447.6,2447.2,0.7726]
[1750836982590,10.0,2447.4,2447.2,0.7726]
[1750836982792,14.08599026,2447.4,2447.0,4.84144957]
[1750836983504,10.0,2447.4,2447.0,4.84144957]
[1750836984624,14.08605914,2447.4,2447.0,0.7549]
[1750836984830,14.08605914,2447.4,2447.0,4.84153614]
[1750836985022,10.0,2447.4,2447.0,4.84153614]
[1750836985194,10.0,2447.4,2447.1,4.08644626]
[1750836985395,10.0,2447.4,2447.0,4.84144807]
[1750836985851,10.0,2447.6,2447.1,4.08640727]
[1750836985995,10.0,2447.4,2447.1,4.08640727]
[1750836986330,10.0,2447.6,2447.3,0.8093]
[1750836986523,8.40736186,2448.1,2447.4,4.08586099]
[1750836986725,7.86136186,2448.1,2447.7,0.8093]
[1750836986906,7.86136186,2448.1,2447.7,4.89473801]
[1750836987124,0.08136186,2448.1,2447.7,4.89473801]
[1750836987517,4.1661634,2448.1,2447.7,4.89473801]
[1750836987718,10.0,2448.0,2447.7,4.89473801]
[1750836987919,10.08136186,2448.1,2447.7,6.46317435]
[1750836988352,14.16616277,2448.1,2447.7,6.46317435]
[1750836988523,4.08511066,2448.0,2447.7,2.37773634]
[1750836988841,4.08511066,2448.0,2447.7,0.8093]
[1750836990051,4.08521,2447.9,2447.7,0.8093]
[1750836990252,4.08536913,2447.8,2447.5,0.8072]
[1750836990460,4.08561021,2447.7,2447.4,1.75]
[1750836990826,4.08572683,2447.6,2447.4,1.75]
[1750836991028,4.08537756,2447.8,2447.3,4.08601493]
[1750836991226,4.08537756,2447.8,2447.4,4.08593835]
[1750836991446,4.08537756,2447.8,2447.5,0.8274]
[1750836991840,10.7882031,2447.9,2447.5,4.91319107]
[1750836992136,10.0,2447.9,2447.6,4.8407314]
[1750836992339,10.0,2448.0,2447.6,4.8407314]
[1750836992539,10.0,2448.0,2447.6,6.5786847]
[1750836992961,0.08136186,2448.1,2447.8,4.08529275]
[1750836993373,0.08136186,2448.1,2447.7,4.08540271]
[1750836993556,10.0,2448.0,2447.6,6.57859002]
[1750836993761,14.08497155,2448.0,2447.6,6.57859002]
[1750836994370,4.08516214,2447.9,2447.6,2.4930533]
[1750836994667,4.08516214,2447.9,2447.6,0.7551]
[1750836995375,4.08520586,2447.9,2447.5,1.75]
[1750836995549,4.08537452,2447.8,2447.5,1.75]
[1750836995737,10.546,2448.0,2447.5,1.75]
[1750836996142,4.08550369,2447.7,2447.5,1.75]
[1750836997065,4.08536729,2447.8,2447.5,1.75]
[1750836997851,4.08546262,2447.8,2447.5,1.75]
[1750837000480,1.87165941,2447.8,2447.2,0.8132]
[1750837000782,4.08575825,2447.6,2447.2,0.8132]
[1750837001644,4.08575825,2447.6,2447.2,4.89949188]
[1750837002580,4.08556879,2447.7,2447.2,4.89949188]
[1750837003475,4.08556879,2447.7,2447.3,4.08612536]
[1750837006288,0.546,2448.3,2447.4,0.8194]
[1750837006476,4.0850741,2448.0,2447.5,4.08568268]
[1750837006788,4.0850741,2448.0,2447.6,4.90497161]
[1750837007386,4.08489806,2448.1,2447.6,4.90497161]
[1750837007575,10.0,2448.0,2447.6,4.90497161]
[1750837008387,14.0850371,2448.0,2447.6,4.90497161]
[1750837008558,0.546,2448.3,2447.6,0.8194]
[1750837008754,0.13137711,2448.4,2447.9,4.88178437]
[1750837008976,0.13137711,2448.4,2448.1,0.821]
[1750837009168,0.13137711,2448.4,2448.3,0.821]
[1750837009387,0.13137711,2448.4,2448.3,4.90546677]
[1750837009682,0.13137711,2448.4,2448.3,0.821]
[1750837009892,0.13137711,2448.4,2448.3,4.90546677]
[1750837010061,0.13137711,2448.4,2448.3,5.97916403]
[1750837012325,0.13137711,2448.4,2448.3,1.89469726]
[1750837012617,0.13137711,2448.4,2448.3,5.97916403]
[1750837015787,0.13137711,2448.4,2448.3,1.89469726]
[1750837015986,0.13137711,2448.4,2448.3,0.821]
[1750837016727,4.08453552,2448.3,2447.9,4.08500086]
[1750837016894,4.08470589,2448.2,2447.8,0.7596]
[1750837017399,4.76177775,2448.4,2447.9,4.08504026]
[1750837017604,6.64637762,2448.4,2447.9,4.08504026]
[1750837017899,4.08449295,2448.3,2447.9,4.08504026]
[1750837018396,4.08449295,2448.3,2447.9,4.08511389]
[1750837018721,4.08464678,2448.2,2447.8,0.7596]
[1750837019431,4.08453878,2448.3,2447.8,4.84487713]
[1750837019596,5.82732648,2448.3,2447.8,4.84487713]
[1750837020223,4.08468474,2448.2,2447.8,4.84487713]
[1750837020428,4.08486605,2448.1,2447.6,6.66177947]
[1750837020728,5.82732462,2448.3,2447.8,4.08517401]
[1750837021097,1.7427877,2448.3,2447.9,4.0850535]
[1750837021529,1.7427877,2448.3,2448.0,4.08495187]
[1750837021932,1.7427877,2448.3,2447.9,4.08504124]
[1750837022111,14.76172553,2448.4,2447.9,4.08504124]
[1750837023251,4.0846538,2448.2,2447.8,4.08526112]
[1750837023533,14.76170511,2448.4,2447.8,4.08526112]
[1750837023838,4.0845524,2448.3,2447.8,4.08526112]
[1750837024140,4.08465808,2448.2,2447.7,4.08545983]
[1750837024349,4.08454195,2448.3,2447.7,4.08545983]
[1750837024636,4.0847498,2448.2,2447.7,4.08545983]
[1750837024844,4.08481567,2448.1,2447.7,4.08545983]
[1750837025610,4.08473341,2448.2,2447.7,4.08545983]
[1750837025811,4.08473341,2448.2,2447.8,4.08530092]
[1750837026630,4.08473341,2448.2,2447.7,4.0853697]
[1750837027833,4.08482978,2448.1,2447.7,4.0853697]
[1750837028551,4.08473522,2448.2,2447.7,4.0853697]
[1750837029244,4.08473522,2448.2,2447.8,4.08529005]
[1750837029622,4.08457205,2448.3,2447.9,4.0850628]
[1750837029846,4.08457205,2448.3,2447.7,4.0854001]
[1750837030157,4.08480379,2448.1,2447.7,4.08539872]
[1750837030321,0.546,2448.0,2447.4,0.8194]
[1750837030649,0.546,2448.0,2447.4,2.5654]
[1750837030824,4.08538595,2447.8,2447.4,2.5654]
[1750837031252,10.0,2447.9,2447.4,1.746]
[1750837031453,4.0855753,2447.7,2447.4,1.746]
[1750837031662,4.08564261,2447.6,2447.4,1.746]
[1750837031841,4.63164261,2447.6,2447.2,0.829]
[1750837032150,0.546,2447.6,2447.1,4.08642399]
[1750837032354,4.63137995,2447.8,2447.4,4.08596102]
[1750837032560,4.63137995,2447.8,2447.4,4.87546102]
[1750837033557,0.546,2447.8,2447.5,4.08580003]
[1750837034454,0.546,2447.8,2447.4,4.87537992]
[1750837035626,0.546,2447.8,2447.5,4.08579681]
[1750837036051,0.546,2447.8,2447.4,4.87536687]
[1750837036238,10.0,2447.9,2447.4,0.7895]
[1750837036450,10.0,2447.9,2447.5,4.08565208]
[1750837036836,0.546,2448.1,2447.6,4.08561964]
[1750837037027,0.546,2448.1,2447.5,4.08566298]
[1750837037028,10.0,2447.9,2447.5,4.08566298]
[1750837037243,14.08514106,2447.9,2447.5,4.08566298]
[1750837037774,10.0,2447.9,2447.6,4.08555864]
[1750837038672,10.0,2448.0,2447.7,4.08545225]
[1750837038976,10.0,2448.0,2447.6,4.0855656]
[1750837039349,4.08514492,2447.9,2447.5,4.08573839]
[1750837039553,10.0,2447.8,2447.5,4.08573839]
[1750837039973,10.0,2447.8,2447.4,4.87538449]
[1750837040577,14.08531055,2447.8,2447.4,4.87538449]
[1750837040742,4.08548016,2447.7,2447.3,4.08606956]
[1750837041353,15.445368,2447.8,2447.3,4.08606956]
[1750837041775,1.36005745,2447.8,2447.4,4.08586117]
[1750837041974,0.546,2447.8,2447.4,4.08586117]
[1750837042679,4.63130577,2447.8,2447.4,4.08586117]
[1750837043068,0.546,2447.8,2447.3,4.08607206]
[1750837043248,0.546,2447.8,2447.4,4.08589792]
[1750837044655,4.63130234,2447.8,2447.4,4.08589792]
[1750837044858,0.546,2447.8,2447.4,4.08589792]
[1750837046283,4.63130148,2447.8,2447.4,4.08589792]
[1750837046766,4.08550014,2447.7,2447.2,4.85264286]
[1750837046965,10.0,2447.3,2447.0,4.08657383]
[1750837047279,10.0,2447.4,2447.0,4.0865516]
[1750837047853,14.08597938,2447.4,2447.0,4.0865516]
[1750837048380,14.08597938,2447.4,2446.9,13.89076609]
[1750837048954,14.08597938,2447.4,2447.0,4.08663049]
[1750837049356,14.08591325,2447.5,2447.0,4.08663669]
[1750837049558,14.08591325,2447.5,2447.1,4.08646748]
[1750837049765,14.08591325,2447.5,2447.0,4.08654869]
[1750837049970,4.08597957,2447.4,2447.0,4.08654869]
[1750837050166,4.08598479,2447.4,2447.0,4.08654869]
[1750837050378,14.08587479,2447.5,2447.1,4.08644219]
[1750837050672,10.0,2447.5,2447.1,4.08644219]
[1750837051073,14.08581658,2447.5,2447.1,4.08644219]
[1750837052306,4.08597082,2447.4,2447.0,4.08658884]
[1750837053512,16.28225153,2447.5,2447.1,4.08643992]
[1750837053997,12.19636635,2447.5,2447.2,4.08629364]
[1750837054200,10.0,2447.5,2447.2,4.08629364]
[1750837054370,10.0,2447.5,2447.2,4.89599364]
[1750837054701,0.546,2447.8,2447.3,4.08599002]
[1750837054902,11.32537262,2447.8,2447.4,4.0859424]
[1750837055099,10.0,2447.7,2447.4,4.0859424]
[1750837055268,10.546,2448.0,2447.5,4.08575322]
[1750837055604,23.02022988,2447.9,2447.5,4.08575322]
[1750837056171,16.32622988,2447.9,2447.5,4.08575322]
[1750837057198,16.32622988,2447.9,2447.4,4.08589761]
[1750837057413,10.0,2447.7,2447.4,4.08589761]
[1750837059212,10.0,2447.7,2447.5,4.08578233]
[1750837059417,10.0,2447.7,2447.6,4.0856349]
[1750837059913,10.0,2447.7,2447.5,4.08570677]
[1750837060798,4.63104897,2448.0,2447.6,4.0856349]
[1750837060799,10.0,2447.9,2447.6,4.0856349]
[1750837061521,4.08515214,2447.9,2447.5,4.91193703]
[1750837061726,14.08526728,2447.9,2447.5,0.8262]
[1750837062607,10.0,2447.8,2447.5,4.91199419]
[1750837063618,4.08551166,2447.7,2447.3,12.52407249]
[1750837063813,4.08551166,2447.7,2447.3,9.2515]
[1750837063814,4.08546799,2447.7,2447.3,9.2515]
[1750837064016,4.08546799,2447.7,2447.4,6.693]
[1750837065024,4.63140593,2447.8,2447.4,6.693]
[1750837065418,4.0854715,2447.7,2447.4,6.693]
[1750837065602,4.63139545,2447.8,2447.4,6.693]
[1750837066018,4.08547029,2447.7,2447.4,6.693]
[1750837066719,4.08566664,2447.6,2447.4,6.693]
[1750837067023,4.08554011,2447.7,2447.4,6.693]
[1750837067432,10.0,2447.7,2447.4,10.77896622]
[1750837068414,4.0852311,2447.9,2447.5,4.08576964]
[1750837068619,10.0,2447.8,2447.5,4.90176964]
[1750837068819,10.0,2447.9,2447.5,4.90176964]
[1750837069132,10.0,2447.9,2447.6,4.08557813]
[1750837070805,10.0,2447.9,2447.5,4.90171464]
[1750837071232,10.0,2447.9,2447.6,4.08562919]
[1750837072533,10.0,2448.0,2447.6,4.08562919]
[1750837072721,10.0,2448.1,2447.6,4.08552827]
[1750837072930,14.08487886,2448.1,2447.6,4.08552827]
[1750837074942,14.08487886,2448.1,2447.7,4.08546411]
[1750837075145,15.95643649,2448.1,2447.7,4.08546411]
[1750837075651,12.41003111,2448.6,2447.8,7.5053]
[1750837075808,4.08423663,2448.5,2448.1,0.8031]
[1750837076114,10.0,2448.4,2448.1,4.88789135]
[1750837077737,10.0,2448.4,2448.2,4.08461102]
[1750837077939,8.12393135,2448.7,2448.2,4.5734047]
[1750837077940,4.04008098,2448.7,2448.2,4.5734047]
[1750837078142,4.04008098,2448.7,2448.4,4.0842988]
[1750837078322,10.0,2448.6,2448.4,4.0842988]
[1750837079022,4.04008098,2448.7,2448.5,4.08409964]
[1750837079338,0.546,2449.0,2448.6,4.08393504]
[1750837079541,0.546,2449.0,2448.5,0.8332]
[1750837079542,4.08330741,2449.0,2448.5,4.91724434]
[1750837079706,10.0,2448.9,2448.5,0.8332]
[1750837079912,14.08321689,2449.1,2448.6,4.08396472]
[1750837080330,0.546,2449.2,2448.5,1.49903804]
[1750837080540,0.546,2449.4,2448.9,0.8332]
[1750837080730,0.546,2449.4,2448.7,4.08373751]
[1750837080731,4.0832321,2449.1,2448.7,0.8332]
[1750837080933,10.0,2449.1,2448.7,4.91699201]
[1750837081846,14.08320934,2449.1,2448.7,0.8332]
[1750837082412,10.0,2449.1,2448.7,0.8332]
[1750837082824,14.08324314,2449.1,2448.7,0.8332]
[1750837083328,4.08330786,2449.0,2448.7,0.8332]
[1750837083640,4.08326908,2449.1,2448.7,1.99380996]
[1750837083937,14.08326908,2449.1,2448.7,1.99380996]
[1750837084240,10.0,2449.0,2448.7,1.99380996]
[1750837084844,14.08330876,2449.0,2448.7,1.99380996]
[1750837085045,14.08330876,2449.0,2448.7,0.8332]
[1750837085948,14.08322805,2449.1,2448.7,0.8332]
[1750837086243,14.08322805,2449.1,2448.7,4.91698292]
[1750837086542,14.08322805,2449.1,2448.7,0.8332]
[1750837086925,14.08322805,2449.1,2448.7,4.91699424]
[1750837087737,14.08322805,2449.1,2448.7,4.91697764]
[1750837088254,4.08330161,2449.0,2448.7,0.8332]
[1750837089143,14.08322617,2449.1,2448.7,0.8332]
[1750837089630,10.0,2449.1,2448.8,4.08354961]
[1750837089953,14.08315296,2449.1,2448.7,6.48591225]
[1750837091346,14.08290237,2449.3,2448.8,4.08363202]
[1750837091866,10.0,2449.3,2448.7,2.40221372]
[1750837092030,3.78532476,2449.5,2449.1,4.90782011]
[1750837092348,3.78532476,2449.5,2449.2,4.08288775]
[1750837092541,10.0,2449.4,2449.1,0.8247]
[1750837092740,10.0,2449.4,2449.2,4.08295556]
[1750837093849,10.0,2449.4,2449.1,0.8247]
[1750837093850,14.08269645,2449.4,2449.1,0.8247]
[1750837094028,14.08269645,2449.4,2449.1,2.15810664]
[1750837094949,4.08303017,2449.2,2448.9,7.4619]
[1750837095317,10.0,2449.4,2448.9,7.4619]
[1750837095514,3.78532476,2449.5,2448.9,7.4619]
[1750837095515,3.78532476,2449.5,2449.2,4.08281399]
[1750837095745,3.78532476,2449.5,2449.2,0.7846]
[1750837095940,3.78532476,2449.5,2449.3,4.08279463]
[1750837096137,3.78532476,2449.5,2449.4,0.48673946]
[1750837096648,3.78532476,2449.5,2449.4,4.56937194]
[1750837096817,3.78532476,2449.5,2449.4,5.36307194]
[1750837097823,10.0,2449.9,2449.5,4.08231927]
[1750837098019,14.08184234,2449.9,2449.5,4.08231927]
[1750837098563,0.546,2450.6,2449.8,4.08189843]
[1750837098752,4.08091885,2450.5,2450.0,4.0816182]
[1750837099064,4.08091885,2450.5,2450.1,4.08145277]
[1750837099267,4.08091885,2450.5,2450.0,4.08153881]
[1750837099565,4.08091885,2450.5,2450.0,4.0815372]
[1750837099727,4.62673171,2450.6,2450.1,4.08138075]
[1750837099928,4.08083119,2450.5,2450.1,4.08138075]
[1750837100151,10.0,2450.4,2450.1,4.08138075]
[1750837100357,10.0,2450.5,2450.1,4.08138075]
[1750837100555,14.08081428,2450.5,2450.1,4.08138075]
[1750837100756,14.08081428,2450.5,2450.0,5.81699273]
[1750837101330,4.62672913,2450.6,2450.0,5.81699273]
[1750837101331,4.08098407,2450.4,2450.1,1.06649873]
[1750837101530,10.0,2450.5,2450.0,1.73544914]
[1750837101737,16.49286393,2450.5,2449.8,0.8291]
[1750837102035,4.08148372,2450.1,2449.8,0.8291]
[1750837102439,4.62696637,2450.4,2449.6,0.7547]
[1750837102653,4.08190112,2449.9,2449.4,4.83723438]
[1750837102852,4.08190112,2449.9,2449.5,9.31199672]
[1750837103367,4.08190112,2449.9,2449.5,13.39444867]
[1750837103867,0.546,2450.6,2449.6,6.49286393]
[1750837104067,4.62618331,2450.9,2450.3,0.8314]
[1750837104233,4.08039722,2450.8,2450.3,0.8314]
[1750837104869,4.62622696,2450.9,2450.4,4.08096487]
[1750837105170,4.08003274,2451.0,2450.3,0.8314]
[1750837105171,10.0,2450.8,2450.5,4.08074814]
[1750837105550,10.0,2450.8,2450.4,4.08091249]
[1750837107168,2.287,2451.5,2450.6,0.7939]
[1750837107169,4.07923023,2451.5,2450.6,0.7939]
[1750837107379,0.7665945,2452.5,2450.9,0.7939]
[1750837107556,4.07830007,2452.1,2451.4,4.07916126]
[1750837107752,14.4862274,2452.0,2451.4,4.07916126]
[1750837108587,10.95383001,2452.0,2451.1,4.0796987]
[1750837108766,4.07893004,2451.7,2451.2,8.417]
[1750837109376,1.737,2452.3,2451.2,8.417]
[1750837109377,0.546,2452.4,2451.3,0.8123]
[1750837109583,0.546,2452.6,2452.2,4.07786518]
[1750837109890,10.0,2452.6,2452.2,4.0779469]
[1750837110076,0.546,2452.9,2452.0,1.737]
[1750837110379,4.07763823,2452.4,2451.9,6.57896886]
[1750837110585,0.83756018,2452.4,2451.4,5.00214249]
[1750837110790,0.83756018,2452.4,2451.6,4.85717607]
[1750837110791,0.546,2452.2,2451.6,4.85717607]
[1750837110959,4.07817522,2452.1,2451.6,0.7783]
[1750837111359,14.62397878,2452.2,2451.6,0.7783]
[1750837111578,4.07837018,2452.0,2451.6,0.7783]
[1750837111739,4.07836675,2452.0,2451.6,0.7783]
[1750837111953,1.87025815,2452.0,2451.4,2.5616]
[1750837112256,4.07905223,2451.6,2451.3,1.737]
[1750837112458,4.0788938,2451.7,2451.3,1.737]
[1750837112775,4.07899412,2451.6,2451.2,1.737]
[1750837113072,4.07889674,2451.7,2451.2,1.737]
[1750837113276,4.07888169,2451.7,2451.2,7.14984719]
[1750837113446,14.07872992,2451.8,2451.3,4.07943878]
[1750837114666,14.07871939,2451.8,2451.3,4.07945965]
[1750837114868,4.0788231,2451.7,2451.2,7.14983165]
[1750837115050,4.0788231,2451.7,2451.3,4.07945331]
[1750837115245,4.0788231,2451.7,2451.2,7.14981325]
[1750837115450,4.07880246,2451.7,2451.2,1.737]
[1750837115673,4.07921707,2451.5,2451.2,1.737]
[1750837116049,10.55,2451.9,2451.2,1.737]
[1750837116248,4.07870712,2451.8,2451.3,4.07934806]
[1750837116449,10.0,2451.9,2451.3,4.07946803]
[1750837116649,14.07855121,2451.9,2451.4,4.07921008]
[1750837116859,4.07864965,2451.8,2451.3,4.0793927]
[1750837118084,4.07864965,2451.8,2451.4,4.07928888]
[1750837118856,14.07856874,2451.9,2451.4,4.07928888]
[1750837119585,4.07863917,2451.8,2451.4,4.07928888]
[1750837120681,14.07852891,2451.9,2451.4,4.07928888]
[1750837120888,16.56261809,2451.9,2451.4,4.07928888]
[1750837121263,12.48408918,2451.9,2451.5,4.07897982]
[1750837121458,12.48408918,2451.9,2451.2,1.737]
[1750837121459,7.776,2452.2,2451.2,5.81661199]
[1750837121460,7.226,2452.2,2451.2,5.81661199]
[1750837121691,7.226,2452.2,2451.7,4.07877213]
[1750837121692,4.07820174,2452.1,2451.7,4.07877213]
[1750837121881,4.07820174,2452.1,2451.6,4.83317681]
[1750837122058,4.07820174,2452.1,2451.6,0.7543]
[1750837122059,4.07819553,2452.1,2451.6,0.7543]
[1750837122258,4.07819553,2452.1,2451.6,4.83326271]
[1750837122259,10.0,2452.0,2451.6,4.83326271]
[1750837122782,10.0,2452.0,2451.7,4.0787601]
[1750837122960,10.0,2452.0,2451.6,4.8331707]
[1750837123287,14.07830626,2452.0,2451.6,4.8331707]
[1750837123860,10.0,2451.8,2451.6,0.7543]
[1750837125173,10.0,2451.8,2451.6,4.83326525]
[1750837125493,14.07822233,2452.1,2451.6,4.83326525]
[1750837125791,16.94844788,2452.1,2451.6,4.83326525]
[1750837125991,12.87022555,2452.1,2451.7,4.07870183]
[1750837126188,0.7665945,2452.5,2452.0,4.07829953]
[1750837126388,0.7665945,2452.5,2451.9,4.07838208]
[1750837126389,4.07770034,2452.4,2451.9,4.07838208]
[1750837126588,4.07789018,2452.3,2451.9,4.07838208]
[1750837126958,10.0,2452.2,2451.9,4.07838208]
[1750837127591,10.0,2452.2,2451.8,4.07854456]
[1750837127795,10.0,2452.2,2451.9,4.07846623]
[1750837128090,4.84417044,2452.5,2452.0,4.07819326]
[1750837128292,10.0,2452.4,2452.1,4.07810876]
[1750837128468,4.07764791,2452.4,2451.9,4.07838625]
[1750837128789,14.07799674,2452.2,2451.8,4.07856264]
[1750837128980,0.55,2452.3,2451.6,0.7543]
[1750837129164,4.07855746,2451.9,2451.6,1.736]
[1750837129359,10.546,2452.2,2451.6,5.81496172]
[1750837129574,4.07814121,2452.1,2451.7,4.07866997]
[1750837129975,4.07814121,2452.1,2451.6,5.81487078]
[1750837130176,4.07814121,2452.1,2451.7,4.0787884]
[1750837130384,4.07834685,2452.0,2451.6,1.736]
[1750837130669,4.07840433,2452.0,2451.6,5.81496131]
[1750837130874,4.07840433,2452.0,2451.6,1.736]
[1750837131077,4.07818238,2452.1,2451.6,5.81496588]
[1750837131497,14.62410991,2452.2,2451.7,4.07879432]
[1750837132696,4.07814186,2452.1,2451.7,4.07879432]
[1750837133185,14.62405181,2452.2,2451.7,4.07879432]
[1750837133392,14.62405181,2452.2,2451.8,4.0786113]
[1750837133598,4.07815674,2452.1,2451.7,4.07873258]
[1750837133773,14.62401978,2452.2,2451.8,4.07863004]
[1750837134100,14.07801978,2452.2,2451.8,4.07863004]
[1750837134908,14.07801978,2452.2,2451.7,4.07871514]
[1750837135098,14.07801978,2452.2,2451.7,4.07880246]
[1750837135300,14.07801978,2452.2,2451.4,7.4911]
[1750837135301,10.0,2452.2,2451.4,0.8131]
[1750837135480,4.07881323,2451.7,2451.4,0.8131]
[1750837135671,14.62458152,2451.9,2451.4,4.89237203]
[1750837135994,14.0785623,2451.9,2451.4,4.89237203]
[1750837136607,4.07868376,2451.8,2451.4,0.8131]
[1750837136785,14.07856568,2451.9,2451.4,4.89240126]
[1750837137799,4.07864014,2451.8,2451.4,0.8131]
[1750837138283,4.07849953,2451.9,2451.4,4.89237317]
[1750837138284,4.07856777,2451.9,2451.4,4.89237317]
[1750837138900,10.0,2452.0,2451.4,0.8131]
[1750837139093,4.07913522,2451.5,2451.4,0.8131]
[1750837139291,0.546,2451.9,2451.2,4.07963446]
[1750837139491,4.0785424,2451.9,2451.4,4.07920925]
[1750837140193,4.07864532,2451.8,2451.5,0.8204]
[1750837140376,4.0788322,2451.7,2451.5,0.8204]
[1750837140708,4.0788322,2451.7,2450.9,0.8204]
[1750837140709,11.16176203,2451.7,2450.9,0.8204]
[1750837141003,4.0797403,2451.2,2450.9,0.8204]
[1750837141408,4.07983902,2451.1,2450.9,0.8204]
[1750837141595,4.07936854,2451.4,2450.9,0.8204]